lending/lending_fUSD_20250516
["ID","MTS","AMOUNT","RATE_DAILY","PERIOD"]
[361262496,1747403457487,-400.0,0.00016712,2]
[361262497,1747403457496,-1106.72,0.00016712,2]
[361262498,1747403457506,-400.0,0.00016712,2]
[361262499,1747403457515,-630.11,0.00016712,2]
[361262500,1747403457525,-400.0,0.00016712,2]
[361262501,1747403457535,-428.74,0.00016712,2]
[361262502,1747403457544,-400.0,0.00016712,2]
[361262503,1747403457555,-400.0,0.00016712,2]
[361262504,1747403457564,-690.12,0.00016712,2]
[361262505,1747403457574,-608.21,0.00016712,2]
[361262506,1747403457583,-432.72083667,0.00016712,2]
[361262507,1747403457593,-1114.04,0.00016712,2]
[361262508,1747403457602,-400.0,0.00016712,2]
[361262509,1747403457611,-400.0,0.00016712,2]
[361262510,1747403457621,-400.0,0.00016712,2]
[361262511,1747403457631,-400.0,0.00016712,2]
[361262512,1747403457640,-497.43630701,0.00016712,2]
[361262513,1747403457649,-400.0,0.00016712,2]
[361262514,1747403457659,-1258.26,0.00016712,2]
[361262515,1747403457669,-400.0,0.00016712,2]
[361262516,1747403457678,-580.85,0.00016712,2]
[361262517,1747403457690,-574.35,0.00016712,2]
[361262518,1747403457699,-414.45,0.00016712,2]
[361262519,1747403457709,-1042.53,0.00016712,2]
[361262520,1747403457718,-400.0,0.00016712,2]
[361262521,1747403457728,-400.0,0.00016712,2]
[361262522,1747403457738,-400.0,0.00016712,2]
[361262523,1747403457747,-834.85,0.00016712,2]
[361262524,1747403457757,-771.07,0.00016712,2]
[361262525,1747403457766,-1311.17,0.00016712,2]
[361262526,1747403457775,-400.0,0.00016712,2]
[361262527,1747403457785,-204.51,0.00016712,2]
[361262528,1747403457801,-783.43,0.00016712,2]
[361262529,1747403457815,-571.9,0.00016712,2]
[361262530,1747403457825,-400.0,0.00016712,2]
[361262531,1747403457838,-610.45,0.00016712,2]
[361262532,1747403457848,-400.0,0.00016712,2]
[361262533,1747403457858,-561.32,0.00016712,2]
[361262534,1747403457868,-491.08,0.00016712,2]
[361262535,1747403457878,-1178.36,0.00016712,2]
[361262536,1747403457888,-1311.65,0.00016712,2]
[361262537,1747403457898,-297.24761748,0.00016712,2]
[361262538,1747403457908,-589.61,0.00016712,2]
[361262539,1747403457918,-151.0,0.00016712,2]
[361262540,1747403457929,-483.01,0.00016712,2]
[361262541,1747403457940,-1062.31,0.00016712,2]
[361262542,1747403457949,-400.0,0.00016712,2]
[361262543,1747403457959,-1128.58,0.00016712,2]
[361262544,1747403457968,-400.0,0.00016712,2]
[361262545,1747403457978,-400.0,0.00016712,2]
[361262546,1747403457988,-772.91,0.00016712,2]
[361262547,1747403457997,-1464.61,0.00016712,2]
[361262548,1747403458007,-400.0,0.00016712,2]
[361262549,1747403458016,-400.0,0.00016712,2]
[361262550,1747403458026,-400.0,0.00016712,2]
[361262551,1747403458036,-536.79,0.00016712,2]
[361262552,1747403458045,-441.40937809,0.00016712,2]
[361262553,1747403458054,-400.0,0.00016712,2]
[361262554,1747403458064,-742.01,0.00016712,2]
[361262555,1747403458074,-400.0,0.00016712,2]
[361262556,1747403458084,-400.0,0.00016712,2]
[361262557,1747403458093,-657.51,0.00016712,2]
[361262558,1747403458103,-151.0,0.00016712,2]
[361262559,1747403458113,-151.0,0.00016712,2]
[361262560,1747403458123,-151.0,0.00016712,2]
[361262561,1747403458133,-151.0,0.00016712,2]
[361262562,1747403458142,-637.06,0.00016712,2]
[361262563,1747403458152,-643.82,0.00016712,2]
[361262564,1747403458162,-400.0,0.00016712,2]
[361262565,1747403458171,-400.0,0.00016712,2]
[361262566,1747403458181,-400.0,0.00016712,2]
[361262567,1747403458191,-520.72,0.00016712,2]
[361262568,1747403458201,-209.59,0.00016712,2]
[361262569,1747403458211,-400.0,0.00016712,2]
[361262570,1747403458221,-564.96,0.00016712,2]
[361262571,1747403458231,-616.67,0.00016712,2]
[361262572,1747403458242,-400.0,0.00016712,2]
[361262573,1747403458251,-400.0,0.00016712,2]
[361262574,1747403458260,-681.55,0.00016712,2]
[361262575,1747403458271,-560.19,0.00016712,2]
[361262576,1747403458281,-400.0,0.00016712,2]
[361262577,1747403458291,-400.0,0.00016712,2]
[361262578,1747403458300,-400.0,0.00016712,2]
[361262579,1747403458310,-1374.01,0.00016712,2]
[361262580,1747403458320,-400.0,0.00016712,2]
[361262581,1747403458330,-400.0,0.00016712,2]
[361262582,1747403458340,-1254.92,0.00016712,2]
[361262583,1747403458350,-400.0,0.00016712,2]
[361262584,1747403458359,-400.0,0.00016712,2]
[361262585,1747403458369,-400.0,0.00016712,2]
[361262586,1747403458379,-400.0,0.00016712,2]
[361262587,1747403458389,-515.69,0.00016712,2]
[361262588,1747403458400,-1566.12,0.00016712,2]
[361262589,1747403458409,-869.72,0.00016712,2]
[361262590,1747403458420,-151.0,0.00016712,2]
[361262591,1747403458430,-151.0,0.00016712,2]
[361262592,1747403458441,-151.0,0.00016712,2]
[361262593,1747403458451,-151.0,0.00016712,2]
[361262594,1747403458461,-445.63,0.00016712,2]
[361262595,1747403458471,-400.0,0.00016712,2]
[361262596,1747403458481,-151.0,0.00016712,2]
[361262597,1747403458492,-971.6,0.00016712,2]
[361262598,1747403458501,-400.0,0.00016712,2]
[361262599,1747403458511,-495.29,0.00016712,2]
[361262600,1747403458521,-400.0,0.00016712,2]
[361262601,1747403458531,-874.2,0.00016712,2]
[361262602,1747403458540,-400.0,0.00016712,2]
[361262603,1747403458550,-817.89,0.00016712,2]
[361262604,1747403458559,-711.4,0.00016712,2]
[361262605,1747403458569,-400.0,0.00016712,2]
[361262606,1747403458579,-448.23,0.00016712,2]
[361262607,1747403458589,-400.0,0.00016712,2]
[361262608,1747403458598,-1076.1,0.00016712,2]
[361262609,1747403458607,-400.0,0.00016712,2]
[361262610,1747403458617,-400.0,0.00016712,2]
[361262611,1747403458627,-630.58,0.00016712,2]
[361262612,1747403458637,-710.2,0.00016712,2]
[361262613,1747403458646,-426.68,0.00016712,2]
[361262614,1747403458656,-400.0,0.00016712,2]
[361262615,1747403458665,-400.0,0.00016712,2]
[361262616,1747403458675,-581.52,0.00016712,2]
[361262617,1747403458684,-151.0,0.00016712,2]
[361262618,1747403458695,-151.0,0.00016712,2]
[361262619,1747403458704,-1016.48,0.00016712,2]
[361262620,1747403458714,-400.0,0.00016712,2]
[361262621,1747403458723,-1339.55,0.00016712,2]
[361262622,1747403458733,-532.73,0.00016712,2]
[361262623,1747403458742,-876.36,0.00016712,2]
[361262624,1747403458751,-400.0,0.00016712,2]
[361262625,1747403458761,-400.0,0.00016712,2]
[361262626,1747403458771,-524.79,0.00016712,2]
[361262627,1747403458780,-845.22,0.00016712,2]
[361262628,1747403458789,-1716.84,0.00016712,2]
[361262629,1747403458798,-400.0,0.00016712,2]
[361262630,1747403458808,-2143.73,0.00016712,2]
[361262631,1747403458817,-400.0,0.00016712,2]
[361262632,1747403458826,-400.0,0.00016712,2]
[361262633,1747403458838,-400.0,0.00016712,2]
[361262634,1747403458848,-400.0,0.00016712,2]
[361262635,1747403458857,-400.0,0.00016712,2]
[361262636,1747403458866,-1725.37,0.00016712,2]
[361262637,1747403458875,-526.71,0.00016712,2]
[361262638,1747403458885,-462.14,0.00016712,2]
[361262639,1747403458894,-400.0,0.00016712,2]
[361262640,1747403458903,-1875.99,0.00016712,2]
[361262641,1747403458913,-486.93,0.00016712,2]
[361262642,1747403458922,-412.70950897,0.00016712,2]
[361262643,1747403458931,-580.57,0.00016712,2]
[361262644,1747403458941,-575.04,0.00016712,2]
[361262645,1747403458951,-151.0,0.00016712,2]
[361262646,1747403458960,-151.0,0.00016712,2]
[361262647,1747403458970,-151.0,0.00016712,2]
[361262648,1747403458979,-552.78,0.00016712,2]
[361262649,1747403458988,-151.0,0.00016712,2]
[361262650,1747403458998,-1091.2,0.00016712,2]
[361262651,1747403459007,-615.14,0.00016712,2]
[361262652,1747403459016,-215.890149,0.00016712,2]
[361262653,1747403459026,-400.0,0.00016712,2]
[361262654,1747403459036,-215.890149,0.00016712,2]
[361262655,1747403459045,-215.890149,0.00016712,2]
[361262656,1747403459055,-400.0,0.00016712,2]
[361262657,1747403459065,-151.0,0.00016712,2]
[361262658,1747403459074,-215.890149,0.00016712,2]
[361262659,1747403459083,-816.92,0.00016712,2]
[361262660,1747403459092,-215.890149,0.00016712,2]
[361262661,1747403459102,-151.0,0.00016712,2]
[361262662,1747403459111,-252.840162,0.00016712,2]
[361262663,1747403459120,-659.23,0.00016712,2]
[361262664,1747403459129,-400.0,0.00016712,2]
[361262665,1747403459138,-215.890149,0.00016712,2]
[361262666,1747403459148,-400.0,0.00016712,2]
[361262667,1747403459157,-215.890149,0.00016712,2]
[361262668,1747403459167,-215.890149,0.00016712,2]
[361262669,1747403459176,-2009.23,0.00016712,2]
[361262670,1747403459185,-400.0,0.00016712,2]
[361262671,1747403459196,-1377.21,0.00016712,2]
[361262672,1747403459206,-811.85,0.00016712,2]
[361262673,1747403459215,-479.75,0.00016712,2]
[361262674,1747403459224,-400.0,0.00016712,2]
[361262675,1747403459234,-215.890149,0.00016712,2]
[361262676,1747403459243,-2189.7,0.00016712,2]
[361262677,1747403459253,-215.890148,0.00016712,2]
[361262678,1747403459262,-151.0,0.00016712,2]
[361262679,1747403459272,-400.0,0.00016712,2]
[361262680,1747403459281,-151.0,0.00016712,2]
[361262681,1747403459291,-1089.23,0.00016712,2]
[361262682,1747403459300,-400.0,0.00016712,2]
[361262683,1747403459310,-406.74135205,0.00016712,2]
[361262684,1747403459320,-400.0,0.00016712,2]
[361262685,1747403459329,-400.0,0.00016712,2]
[361262686,1747403459338,-400.0,0.00016712,2]
[361262687,1747403459348,-400.0,0.00016712,2]
[361262688,1747403459357,-400.0,0.00016712,2]
[361262689,1747403459367,-400.0,0.00016712,2]
[361262690,1747403459376,-400.0,0.00016712,2]
[361262691,1747403459387,-1259.24,0.00016712,2]
[361262692,1747403459397,-400.0,0.00016712,2]
[361262693,1747403459407,-753.9,0.00016712,2]
[361262694,1747403459417,-401.97499865,0.00016712,2]
[361262695,1747403459427,-400.0,0.00016712,2]
[361262696,1747403459438,-1519.42,0.00016712,2]
[361262697,1747403459448,-628.71,0.00016712,2]
[361262698,1747403459457,-400.0,0.00016712,2]
[361262699,1747403459467,-400.0,0.00016712,2]
[361262700,1747403459476,-400.0,0.00016712,2]
[361262701,1747403459486,-400.0,0.00016712,2]
[361262702,1747403459496,-1371.93,0.00016712,2]
[361262703,1747403459506,-492.84,0.00016712,2]
[361262704,1747403459515,-400.0,0.00016712,2]
[361262705,1747403459525,-400.0,0.00016712,2]
[361262706,1747403459535,-400.0,0.00016712,2]
[361262707,1747403459545,-811.09,0.00016712,2]
[361262708,1747403459555,-486.33,0.00016712,2]
[361262709,1747403459564,-1791.57,0.00016712,2]
[361262710,1747403459575,-529.49,0.00016712,2]
[361262711,1747403459584,-2015.92,0.00016712,2]
[361262712,1747403459593,-400.0,0.00016712,2]
[361262713,1747403459603,-400.0,0.00016712,2]
[361262714,1747403459612,-1427.59,0.00016712,2]
[361262715,1747403459622,-400.0,0.00016712,2]
[361262716,1747403459631,-918.62,0.00016712,2]
[361262717,1747403459640,-832.58,0.00016712,2]
[361262718,1747403459649,-680.15,0.00016712,2]
[361262719,1747403459659,-683.62,0.00016712,2]
[361262720,1747403459668,-400.0,0.00016712,2]
[361262721,1747403459677,-400.0,0.00016712,2]
[361262722,1747403459687,-400.0,0.00016712,2]
[361262723,1747403459701,-1060.68,0.00016712,2]
[361262724,1747403459710,-400.0,0.00016712,2]
[361262725,1747403459719,-484.65,0.00016712,2]
[361262726,1747403459730,-400.0,0.00016712,2]
[361262727,1747403459740,-400.0,0.00016712,2]
[361262728,1747403459750,-400.0,0.00016712,2]
[361262729,1747403459760,-400.0,0.00016712,2]
[361262730,1747403459769,-400.0,0.00016712,2]
[361262731,1747403459779,-939.85,0.00016712,2]
[361262732,1747403459788,-400.0,0.00016712,2]
[361262733,1747403459797,-400.0,0.00016712,2]
[361262734,1747403459807,-400.0,0.00016712,2]
[361262735,1747403459816,-1247.65,0.00016712,2]
[361262736,1747403459826,-465.53,0.00016712,2]
[361262737,1747403459837,-400.0,0.00016712,2]
[361262738,1747403459846,-658.0,0.00016712,2]
[361262739,1747403459855,-996.14,0.00016712,2]
[361262740,1747403459864,-400.0,0.00016712,2]
[361262741,1747403459874,-400.0,0.00016712,2]
[361262742,1747403459883,-400.0,0.00016712,2]
[361262743,1747403459893,-400.0,0.00016712,2]
[361262744,1747403459902,-914.49,0.00016712,2]
[361262745,1747403459912,-544.30294881,0.00016712,2]
[361262746,1747403459921,-1207.1,0.00016712,2]
[361262747,1747403459930,-400.0,0.00016712,2]
[361262748,1747403459940,-400.0,0.00016712,2]
[361262749,1747403459949,-528.71,0.00016712,2]
[361262750,1747403459958,-400.0,0.00016712,2]
[361262751,1747403459967,-419.52,0.00016712,2]
[361262752,1747403459976,-851.93,0.00016712,2]
[361262753,1747403459985,-400.0,0.00016712,2]
[361262754,1747403459995,-1078.1,0.00016712,2]
[361262755,1747403460004,-400.0,0.00016712,2]
[361262756,1747403460014,-1186.97,0.00016712,2]
[361262757,1747403460024,-400.0,0.00016712,2]
[361262758,1747403460034,-1069.1,0.00016712,2]
[361262759,1747403460043,-400.0,0.00016712,2]
[361262760,1747403460053,-400.0,0.00016712,2]
[361262761,1747403460063,-400.0,0.00016712,2]
[361262762,1747403460072,-400.0,0.00016712,2]
[361262763,1747403460082,-566.5,0.00016712,2]
[361262764,1747403460091,-400.0,0.00016712,2]
[361262765,1747403460101,-400.0,0.00016712,2]
[361262766,1747403460111,-400.0,0.00016712,2]
[361262767,1747403460120,-561.61,0.00016712,2]
[361262768,1747403460130,-400.0,0.00016712,2]
[361262769,1747403460141,-685.72,0.00016712,2]
[361262770,1747403460151,-151.0,0.00016712,2]
[361262771,1747403460161,-400.0,0.00016712,2]
[361262772,1747403460170,-151.0,0.00016712,2]
[361262773,1747403460180,-400.0,0.00016712,2]
[361262774,1747403460190,-151.0,0.00016712,2]
[361262775,1747403460199,-186.15444,0.00016712,2]
[361262776,1747403460209,-400.0,0.00016712,2]
[361262777,1747403460220,-400.0,0.00016712,2]
[361262778,1747403460230,-429.72,0.00016712,2]
[361262779,1747403460239,-400.0,0.00016712,2]
[361262780,1747403460249,-400.0,0.00016712,2]
[361262781,1747403460258,-1204.85,0.00016712,2]
[361262782,1747403460268,-400.0,0.00016712,2]
[361262783,1747403460277,-400.0,0.00016712,2]
[361262784,1747403460287,-568.99,0.00016712,2]
[361262785,1747403460297,-400.0,0.00016712,2]
[361262786,1747403460307,-400.0,0.00016712,2]
[361262787,1747403460317,-652.5,0.00016712,2]
[361262788,1747403460326,-400.0,0.00016712,2]
[361262789,1747403460338,-20448.95,0.00016712,2]
[361262790,1747403460347,-400.0,0.00016712,2]
[361262791,1747403460357,-581.86,0.00016712,2]
[361262792,1747403460366,-490.86,0.00016712,2]
[361262793,1747403460376,-400.0,0.00016712,2]
[361262794,1747403460386,-460.75448832,0.00016712,2]
[361262795,1747403460396,-997.29,0.00016712,2]
[361262796,1747403460405,-400.0,0.00016712,2]
[361262797,1747403460415,-485.32,0.00016712,2]
[361262798,1747403460424,-400.0,0.00016712,2]
[361262799,1747403460434,-977.22,0.00016712,2]
[361262800,1747403460445,-400.0,0.00016712,2]
[361262801,1747403460456,-400.0,0.00016712,2]
[361262802,1747403460466,-400.0,0.00016712,2]
[361262803,1747403460476,-179.962124,0.00016712,2]
[361262804,1747403460485,-400.0,0.00016712,2]
[361262805,1747403460494,-638.35,0.00016712,2]
[361262806,1747403460504,-1143.42,0.00016712,2]
[361262807,1747403460514,-3392.64,0.00016712,2]
[361262808,1747403460524,-873.75,0.00016712,2]
[361262809,1747403460533,-1535.19,0.00016712,2]
[361262810,1747403460543,-1184.08,0.00016712,2]
[361262811,1747403460554,-400.0,0.00016712,2]
[361262812,1747403460563,-999.9,0.00016712,2]
[361262813,1747403460573,-535.52,0.00016712,2]
[361262814,1747403460584,-400.0,0.00016712,2]
[361262815,1747403460594,-416.83,0.00016712,2]
[361262816,1747403460603,-400.0,0.00016712,2]
[361262817,1747403460614,-400.0,0.00016712,2]
[361262818,1747403460623,-401.15237419,0.00016712,2]
[361262819,1747403460632,-400.0,0.00016712,2]
[361262820,1747403460642,-2356.78,0.00016712,2]
[361262821,1747403460652,-407.56,0.00016712,2]
[361262822,1747403460663,-409.12,0.00016712,2]
[361262823,1747403460672,-885.99,0.00016712,2]
[361262824,1747403460682,-2131.65,0.00016712,2]
[361262825,1747403460698,-400.0,0.00016712,2]
[361262826,1747403460707,-563.22,0.00016712,2]
[361262827,1747403460717,-163.15683994,0.00016712,2]
[361262828,1747403460727,-465.99,0.00016712,2]
[361262829,1747403460737,-400.0,0.00016712,2]
[361262830,1747403460746,-1162.37,0.00016712,2]
[361262831,1747403460756,-8292.15,0.00016712,2]
[361262832,1747403460765,-599.65,0.00016712,2]
[361262833,1747403460775,-978.17,0.00016712,2]
[361262834,1747403460786,-400.0,0.00016712,2]
[361262835,1747403460796,-400.0,0.00016712,2]
[361262836,1747403460806,-400.0,0.00016712,2]
[361262837,1747403460815,-400.0,0.00016712,2]
[361262838,1747403460824,-545.76,0.00016712,2]
[361262839,1747403460835,-512.43,0.00016712,2]
[361262840,1747403460846,-400.0,0.00016712,2]
[361262841,1747403460856,-400.0,0.00016712,2]
[361262842,1747403460865,-837.98,0.00016712,2]
[361262843,1747403460875,-400.0,0.00016712,2]
[361262844,1747403460886,-455.08,0.00016712,2]
[361262845,1747403460895,-400.0,0.00016712,2]
[361262846,1747403460906,-400.0,0.00016712,2]
[361262847,1747403460917,-745.2,0.00016712,2]
[361262848,1747403460928,-3338.98,0.00016712,2]
[361262849,1747403460937,-6520.24,0.00016712,2]
[361262850,1747403460950,-698.51,0.00016712,2]
[361262851,1747403460959,-571.84,0.00016712,2]
[361262852,1747403460968,-400.0,0.00016712,2]
[361262853,1747403460977,-1338.51,0.00016712,2]
[361262854,1747403460987,-856.59,0.00016712,2]
[361262855,1747403460996,-419.5,0.00016712,2]
[361262856,1747403461007,-400.0,0.00016712,2]
[361262857,1747403461018,-400.0,0.00016712,2]
[361262858,1747403461029,-400.0,0.00016712,2]
[361262859,1747403461043,-10384.51,0.00016712,2]
[361262860,1747403461054,-746.59,0.00016712,2]
[361262861,1747403461063,-978.57,0.00016712,2]
[361262862,1747403461074,-400.0,0.00016712,2]
[361262863,1747403461084,-2019.43,0.00016712,2]
[361262864,1747403461094,-400.0,0.00016712,2]
[361262865,1747403461103,-846.03,0.00016712,2]
[361262866,1747403461113,-400.0,0.00016712,2]
[361262867,1747403461123,-400.0,0.00016712,2]
[361262868,1747403461132,-400.0,0.00016712,2]
[361262869,1747403461142,-791.63,0.00016712,2]
[361262870,1747403461151,-534.7225788,0.00016712,2]
[361262871,1747403461162,-400.0,0.00016712,2]
[361262872,1747403461171,-295.04812349,0.00016712,2]
[361262873,1747403461181,-678.48,0.00016712,2]
[361262874,1747403461191,-20601.33,0.00016712,2]
[361262875,1747403461200,-415.43929777,0.00016712,2]
[361262876,1747403461210,-1811.77,0.00016712,2]
[361262877,1747403461219,-1229.91,0.00016712,2]
[361262878,1747403461229,-400.0,0.00016712,2]
[361262879,1747403461382,-512.29,0.00016712,2]
[361262880,1747403461395,-400.0,0.00016712,2]
[361262881,1747403461404,-400.0,0.00016712,2]
[361262882,1747403461414,-400.0,0.00016712,2]
[361262883,1747403461423,-598.35,0.00016712,2]
[361262884,1747403461433,-511.99,0.00016712,2]
[361262885,1747403461443,-1364.37,0.00016712,2]
[361262886,1747403461452,-921.81,0.00016712,2]
[361262887,1747403461461,-400.0,0.00016712,2]
[361262888,1747403461471,-1775.12,0.00016712,2]
[361262889,1747403461481,-14583.41,0.00016712,2]
[361262890,1747403461490,-945.7,0.00016712,2]
[361262891,1747403461500,-400.0,0.00016712,2]
[361262892,1747403461510,-400.0,0.00016712,2]
[361262893,1747403461520,-400.0,0.00016712,2]
[361262894,1747403461529,-811.02,0.00016712,2]
[361262895,1747403461539,-1687.13,0.00016712,2]
[361262896,1747403461548,-762.69,0.00016712,2]
[361262897,1747403461557,-400.0,0.00016712,2]
[361262898,1747403461567,-668.99,0.00016712,2]
[361262899,1747403461577,-1472.23,0.00016712,2]
[361262900,1747403461586,-400.0,0.00016712,2]
[361262901,1747403461595,-400.0,0.00016712,2]
[361262902,1747403461604,-1343.99,0.00016712,2]
[361262903,1747403461614,-3936.64,0.00016712,2]
[361262904,1747403461623,-2017.63,0.00016712,2]
[361262905,1747403461633,-400.0,0.00016712,2]
[361262906,1747403461643,-400.0,0.00016712,2]
[361262907,1747403461652,-400.0,0.00016712,2]
[361262908,1747403461662,-400.0,0.00016712,2]
[361262909,1747403461671,-400.0,0.00016712,2]
[361262910,1747403461681,-10597.16720171,0.00016712,2]
[361262911,1747403462895,-317.6477,0.00016338,2]
[361262912,1747403462904,-238.50474634,0.00016438,2]
[361262913,1747403462916,-161.49525366,0.00016438,2]
[361262914,1747403462926,-434.79,0.00016438,2]
[361262915,1747403462935,-419.6757202,0.00016712,2]
[361262916,1747403462946,-2060.4494556,0.00016712,2]
[361262917,1747403463003,-431.11603284,0.00016712,2]
[361262918,1747403463019,-2327.37158965,0.00016712,2]
[361262919,1747403463029,-224.22841035,0.00016712,2]
[361262920,1747403463040,-15.56735663,0.00016712,2]
[361262921,1747403463049,-1151.5,0.00016712,2]
[361262922,1747403463059,-628.43264037,0.00016712,2]
[361262923,1747403728296,600.0,0.00027397,120]
[361262927,1747403989246,-267.30138976,0.00013699,2]
[361262928,1747403990906,-165.92258378,0.00013699,2]
[361262929,1747403992801,-166.77602646,0.00013688,2]
[361262931,1747403996126,-300.0,0.00013688,2]
[361262932,1747404000886,-170.05397354,0.00013688,2]
[361262933,1747404000915,-28.36432312,0.00013699,2]
[361262934,1747404002866,-280.36607796,0.00013699,2]
[361262935,1747404005038,-251.2593716,0.00013699,2]
[361262938,1747404029551,-6.78625378,0.00013699,2]
[361262940,1747404074236,-170.95236452,0.00014828,2]
[361262941,1747404076004,-81.84522635,0.00014828,2]
[361262942,1747404191957,150.0,0.000125,5]
[361262943,1747404409898,450.0,0.0001,2]
[361262944,1747404412057,-190.6781074,0.00012,2]
[361262945,1747404416984,-159.04601172,0.00012,2]
[361262946,1747404420095,-150.27588088,0.00012,2]
[361262947,1747404420118,-46.6751247,0.00014,2]
[361262948,1747404425164,-233.85856767,0.00014,2]
[361262949,1747404430541,-173.15398828,0.00014,2]
[361262950,1747404434007,-96.31231935,0.00014,2]
[361262968,1747404632034,-177.35401202,0.00010859,2]
[361262969,1747404632044,-422.31492486,0.00010958,2]
[361262970,1747404632056,-777.68507514,0.00010958,2]
[361262971,1747404632066,-300.0,0.00010958,2]
[361262972,1747404632076,-700.0,0.00010959,2]
[361262973,1747404632094,-152.20193254,0.00010959,2]
[361262974,1747404632106,-547.79806746,0.00010959,2]
[361262975,1747404632116,-700.0,0.00010959,2]
[361262976,1747404632125,-700.0,0.00010959,2]
[361262977,1747404632135,-666.10994254,0.00010959,2]
[361262978,1747404632184,-33.89005746,0.00010959,2]
[361262979,1747404632194,-700.0,0.00010959,2]
[361262980,1747404632203,-700.0,0.00010959,2]
[361262981,1747404632213,-700.0,0.00010959,2]
[361262982,1747404632222,-700.0,0.00010959,2]
[361262983,1747404632231,-700.0,0.00010959,2]
[361262984,1747404632241,-700.0,0.00010959,2]
[361262985,1747404632250,-700.0,0.00010959,2]
[361262986,1747404632262,-700.0,0.00010959,2]
[361262987,1747404632271,-700.0,0.00010959,2]
[361262988,1747404632281,-700.0,0.00010959,2]
[361262989,1747404632290,-700.0,0.00010959,2]
[361262990,1747404632300,-700.0,0.00010959,2]
[361262991,1747404632309,-700.0,0.00010959,2]
[361262992,1747404632318,-700.0,0.00010959,2]
[361262993,1747404632328,-700.0,0.00010959,2]
[361262994,1747404632337,-420.0,0.00012042,2]
[361262995,1747404632347,-1680.0,0.00012054,2]
[361262996,1747404632357,-587.0,0.00013233,2]
[361262997,1747404632371,-2351.0,0.00013259,2]
[361262998,1747404632380,-1081.72625503,0.00014585,2]
[361262999,1747404632393,-278.27374497,0.00014585,2]
[361263000,1747404632403,-808.78175503,0.00015,2]
[361263001,1747404632417,-6067.43179826,0.00015,2]
[361263002,1747404632427,-200.0,0.00015068,2]
[361263003,1747404632437,-150.0,0.00015074,2]
[361263004,1747404632448,-200.0,0.00015079,2]
[361263005,1747404632459,-250.0,0.00015123,2]
[361263006,1747404632468,-697.72,0.00015167,2]
[361263007,1747404632478,-166.87,0.00015333,2]
[361263008,1747404632488,-4000.0,0.00015466,2]
[361263010,1747404632497,-546.07,0.0001548,2]
[361263011,1747404632506,-177.35401202,0.00015531,2]
[361263012,1747404632518,-498.91,0.00015545,2]
[361263013,1747404632527,-23900.0,0.00015551,2]
[361263014,1747404632537,-1060.99,0.000156,2]
[361263015,1747404632548,-161.94,0.00015631,2]
[361263016,1747404632557,-200.0,0.00015644,2]
[361263017,1747404632567,-250.0,0.00015644,2]
[361263018,1747404632577,-207.5,0.00015657,2]
[361263019,1747404632587,-669.82872167,0.00015657,2]
[361263020,1747404632596,-207.4,0.00015657,2]